bitfinex-derivatives/quotes_SOLF0:USTF0_20260304
["timestamp","ask_amount","ask_price","bid_price","bid_amount"]
[1772604307023,1.57724478,85.53,85.49,22.450596]
[1772604307524,1.57724478,85.53,85.49,24.02784078]
[1772604308724,1.57724478,85.54,85.49,24.02784078]
[1772604309823,1.57724478,85.53,85.49,24.02784078]
[1772604311028,1.57724478,85.51,85.475,22.450596]
[1772604312225,25.21379553,85.52,85.475,22.450596]
[1772604313519,1.57724478,85.51,85.475,22.450596]
[1772604315223,25.21379553,85.52,85.475,22.450596]
[1772604316822,10.521,85.538,85.441,187.16]
[1772604316823,23.63655075,85.579,85.511,22.450596]
[1772604317023,23.63655075,85.579,85.53,24.02784078]
[1772604318325,22.91636225,85.569,85.52,25.68233622]
[1772604318926,24.49360703,85.55,85.504,24.10509144]
[1772604320126,1.57724478,85.56,85.51,25.7825345]
[1772604320524,22.72827966,85.566,85.51,24.20528972]
[1772604320730,22.72827966,85.566,85.511,24.20528972]
[1772604321428,22.72827966,85.566,85.513,24.20528972]
[1772604321628,22.72827966,85.582,85.513,24.20528972]
[1772604322528,22.72827966,85.582,85.525,24.20528972]
[1772604323122,22.72827966,85.582,85.527,24.20528972]
[1772604324228,22.72827966,85.578,85.527,24.20528972]
[1772604324826,22.72827966,85.576,85.527,24.20528972]
[1772604325831,22.72827966,85.574,85.527,24.20528972]
[1772604328136,4.68552128,85.57,85.527,24.20528972]
[1772604328336,27.41380094,85.57,85.527,24.20528972]
[1772604328536,27.41380094,85.57,85.509,10.524]
[1772604328738,27.41380094,85.57,85.51,24.20528972]
[1772604329630,27.41380094,85.57,85.513,24.20528972]
[1772604329828,22.72827966,85.57,85.513,24.20528972]
[1772604331237,22.72827966,85.57,85.517,24.20528972]
[1772604331840,22.72827966,85.57,85.521,24.20528972]
[1772604333240,22.72827966,85.57,85.524,24.20528972]
[1772604334139,22.72827966,85.57,85.526,24.20528972]
[1772604334334,22.72827966,85.6,85.526,24.20528972]
[1772604334544,22.72827966,85.616,85.563,24.20528972]
[1772604335639,22.72827966,85.609,85.563,24.20528972]
[1772604338948,22.72827966,85.609,85.541,24.20528972]
[1772604340252,22.72827966,85.609,85.561,24.20528972]
[1772604340648,22.72827966,85.609,85.563,34.72328972]
[1772604340952,22.72827966,85.609,85.564,24.20528972]
[1772604341650,22.72827966,85.607,85.541,24.20528972]
[1772604343252,4.68552128,85.61,85.541,24.20528972]
[1772604343253,22.72827966,85.604,85.541,24.20528972]
[1772604344460,22.72827966,85.604,85.553,24.20528972]
[1772604344963,22.72827966,85.604,85.555,24.20528972]
[1772604345258,19.09919524,85.65,85.555,24.20528972]
[1772604345259,22.72827966,85.62,85.555,24.20528972]
[1772604345452,22.72827966,85.62,85.557,24.20528972]
[1772604345653,22.72827966,85.618,85.557,24.20528972]
[1772604345953,22.72827966,85.614,85.557,24.20528972]
[1772604346151,22.72827966,85.614,85.559,24.20528972]
[1772604348359,10.51,85.624,85.562,22.34460601]
[1772604348556,23.47601174,85.628,85.562,22.34460601]
[1772604348856,10.509,85.635,85.562,22.34460601]
[1772604349061,23.47601174,85.634,85.562,22.34460601]
[1772604349549,23.47601174,85.634,85.579,22.34460601]
[1772604350961,23.47601174,85.629,85.579,22.34460601]
[1772604351158,23.47601174,85.629,85.567,22.34460601]
[1772604352359,23.47601174,85.629,85.571,22.34460601]
[1772604353264,23.47601174,85.617,85.571,22.34460601]
[1772604354167,23.47601174,85.617,85.573,22.34460601]
[1772604355761,23.47601174,85.616,85.559,22.34460601]
[1772604357263,23.47601174,85.615,85.559,22.34460601]
[1772604358265,23.47601174,85.613,85.559,22.34460601]
[1772604358465,23.47601174,85.609,85.559,22.34460601]
[1772604358963,23.47601174,85.607,85.559,22.34460601]
[1772604359866,23.47601174,85.604,85.559,22.34460601]
[1772604360963,23.47601174,85.591,85.541,22.34460601]
[1772604362471,1.57326876,85.59,85.541,22.34460601]
[1772604363370,25.0492805,85.59,85.541,22.34460601]
[1772604363970,25.0492805,85.59,85.494,21.40044057]
[1772604363971,25.0492805,85.57,85.528,22.34460601]
[1772604364661,1.57326876,85.56,85.528,22.34460601]
[1772604365269,25.0492805,85.56,85.515,22.34460601]
[1772604365571,1.57326876,85.55,85.515,22.34460601]
[1772604365761,25.0492805,85.55,85.501,22.34460601]
[1772604365968,1.57326876,85.54,85.501,22.34460601]
[1772604366570,23.47601174,85.55,85.501,22.34460601]
[1772604367664,4.68714074,85.56,85.501,22.34460601]
[1772604367871,23.47601174,85.564,85.501,22.34460601]
[1772604368074,23.47601174,85.564,85.5,4.68714074]
[1772604368075,23.47601174,85.564,85.513,22.34460601]
[1772604370167,23.47601174,85.564,85.515,22.34460601]
[1772604370372,23.47601174,85.582,85.515,22.34460601]
[1772604370575,23.47601174,85.58,85.515,22.34460601]
[1772604370770,28.16315248,85.58,85.515,22.34460601]
[1772604371073,23.47601174,85.592,85.522,22.34460601]
[1772604371275,23.47601174,85.608,85.541,22.34460601]
[1772604372376,23.47601174,85.608,85.54,4.68714074]
[1772604372377,23.47601174,85.608,85.558,22.34460601]
[1772604374779,23.47601174,85.599,85.543,22.34460601]
[1772604376582,23.47601174,85.599,85.526,22.34460601]
[1772604376883,23.47601174,85.578,85.526,22.34460601]
[1772604377886,23.47601174,85.576,85.515,22.34460601]
[1772604378382,23.47601174,85.576,85.518,21.30738597]
[1772604379079,23.47601174,85.576,85.523,10.523]
[1772604379485,23.47601174,85.576,85.524,21.30738597]
[1772604380182,23.47601174,85.576,85.525,10.522]
[1772604381581,23.47601174,85.576,85.503,21.48602654]
[1772604381780,22.57410926,85.559,85.503,21.48602654]
[1772604383287,22.57410926,85.555,85.503,21.48602654]
[1772604387790,22.57410926,85.569,85.506,21.48602654]
[1772604388490,1.57351095,85.58,85.53,1.57351095]
[1772604388688,24.14762021,85.58,85.53,1.57351095]
[1772604389185,1.57351095,85.57,85.53,1.57351095]
[1772604389791,24.14762021,85.58,85.53,1.57351095]
[1772604390488,22.57410926,85.58,85.526,21.48602654]
[1772604391697,22.57410926,85.594,85.536,21.48602654]
[1772604392384,22.57410926,85.594,85.53,4.68391397]
[1772604392385,22.57410926,85.594,85.543,21.48602654]
[1772604393191,22.57410926,85.594,85.532,10.521]
[1772604393192,4.68391397,85.59,85.529,21.48602654]
[1772604393492,22.57410926,85.589,85.529,21.48602654]
[1772604394192,10.515,85.588,85.529,21.48602654]
[1772604394397,22.57410926,85.587,85.529,21.48602654]
[1772604395197,22.57410926,85.587,85.532,21.48602654]
[1772604395999,22.57410926,85.584,85.511,21.48602654]
[1772604397100,22.57410926,85.572,85.511,21.48602654]
[1772604397295,22.57410926,85.549,85.495,21.48602654]
[1772604399198,22.57410926,85.549,85.496,21.48602654]
[1772604399702,22.57410926,85.548,85.496,21.48602654]
[1772604400203,22.57410926,85.548,85.486,10.527]
[1772604400603,22.57410926,85.548,85.486,32.01302654]
[1772604400804,22.57410926,85.548,85.487,21.48602654]
[1772604401307,22.57410926,85.545,85.487,21.48602654]
[1772604403303,22.57410926,85.545,85.47,4.68391397]
[1772604403304,22.57410926,85.545,85.489,21.48602654]
[1772604405304,22.57410926,85.545,85.492,21.48602654]
[1772604406407,22.57410926,85.545,85.495,21.48602654]
[1772604407106,22.57410926,85.543,85.495,21.48602654]
[1772604407410,22.57410926,85.543,85.481,21.48602654]
[1772604407607,22.57410926,85.541,85.481,21.48602654]
[1772604408007,22.57410926,85.535,85.481,21.48602654]
[1772604409111,22.57410926,85.535,85.483,21.77860223]
[1772604409809,21.46151315,85.532,85.483,21.77860223]
[1772604410611,21.46151315,85.529,85.483,21.77860223]
[1772604411700,21.46151315,85.519,85.47,23.3540286]
[1772604412313,1.57542637,85.51,85.47,23.3540286]
[1772604412515,23.03693952,85.51,85.46,1.57542637]
[1772604412711,1.57542637,85.49,85.457,21.77860223]
[1772604413014,1.57542637,85.49,85.441,21.77860223]
[1772604413709,21.46151315,85.516,85.47,23.3540286]
[1772604414103,1.57542637,85.52,85.47,23.3540286]
[1772604414303,21.46151315,85.53,85.49,1.57542637]
[1772604414504,21.46151315,85.551,85.482,21.77860223]
[1772604414911,21.46151315,85.551,85.487,10.527]
[1772604415111,21.46151315,85.551,85.488,21.77860223]
[1772604416116,21.46151315,85.546,85.488,21.77860223]
[1772604416715,21.46151315,85.545,85.48,4.68747979]
[1772604416910,21.46151315,85.539,85.472,21.77860223]
[1772604417512,10.521,85.538,85.473,10.529]
[1772604417706,10.521,85.538,85.474,21.77860223]
[1772604417707,21.46151315,85.537,85.474,21.77860223]
[1772604418516,21.46151315,85.537,85.479,10.528]
[1772604418718,21.46151315,85.537,85.48,21.77860223]
[1772604420217,21.46151315,85.535,85.468,10.529]
[1772604420418,21.46151315,85.535,85.466,21.77860223]
[1772604420720,21.46151315,85.533,85.466,21.77860223]
[1772604420922,21.46151315,85.533,85.46,4.68747979]
[1772604420923,4.68747979,85.54,85.481,21.77860223]
[1772604421128,21.46151315,85.547,85.481,21.77860223]
[1772604421329,4.68747979,85.56,85.481,21.77860223]
[1772604421533,21.46151315,85.559,85.501,21.77860223]
[1772604422127,21.46151315,85.559,85.504,21.77860223]
[1772604422530,21.46151315,85.559,85.487,21.77860223]
[1772604423227,4.68747979,85.56,85.48,4.68747979]
[1772604423228,21.46151315,85.556,85.49,21.77860223]
[1772604423532,21.46151315,85.539,85.49,21.77860223]
[1772604428425,21.46151315,85.539,85.476,10.528]
[1772604428426,21.46151315,85.539,85.477,21.77860223]
[1772604428929,21.46151315,85.539,85.479,21.77860223]
[1772604431531,21.46151315,85.536,85.479,21.77860223]
[1772604436445,1.57556196,85.52,85.48,1.57556196]
[1772604436946,1.57556196,85.52,85.48,23.35416419]
[1772604437143,1.57556196,85.53,85.48,23.35416419]
[1772604438244,1.57556196,85.53,85.482,22.44635665]
[1772604439845,22.33765036,85.53,85.482,22.44635665]
[1772604441744,1.57556196,85.52,85.482,22.44635665]
[1772604442046,21.1170286,85.528,85.482,22.44635665]
[1772604442348,21.1170286,85.528,85.49,1.57556196]
[1772604442543,1.57556196,85.54,85.49,22.15552448]
[1772604443041,9.53781482,85.544,85.501,20.57996252]
[1772604443246,1.57556196,85.56,85.511,20.57996252]
[1772604443652,21.1170286,85.561,85.53,1.57556196]
[1772604443951,21.1170286,85.561,85.52,22.15552448]
[1772604445451,1.57556196,85.56,85.52,22.15552448]
[1772604446350,1.57556196,85.56,85.52,20.57996252]
[1772604447051,22.69259056,85.56,85.52,20.57996252]
[1772604447249,1.57556196,85.55,85.511,20.57996252]
[1772604447451,22.69259056,85.56,85.511,20.57996252]
[1772604448949,22.69259056,85.56,85.52,1.57556196]
[1772604449153,22.69259056,85.56,85.511,20.57996252]
[1772604450347,21.1170286,85.549,85.504,10.525]
[1772604450552,21.1170286,85.539,85.498,20.57996252]
[1772604451255,1.57556196,85.53,85.498,20.57996252]
[1772604452751,1.57556196,85.52,85.484,31.10696252]
[1772604452953,22.69259056,85.53,85.485,20.57996252]
[1772604455061,1.57556196,85.52,85.472,20.57996252]
[1772604455357,21.1170286,85.519,85.472,20.57996252]
[1772604456356,22.69259056,85.51,85.46,1.57556196]
[1772604456561,1.57556196,85.5,85.46,1.57556196]
[1772604456763,1.57556196,85.5,85.46,22.15552448]
[1772604457258,1.57556196,85.49,85.454,21.40044057]
[1772604458262,1.57556196,85.49,85.447,20.57996252]
[1772604458263,1.57556196,85.49,85.455,21.40044057]
[1772604458562,21.1170286,85.5,85.455,21.40044057]
[1772604458763,21.1170286,85.5,85.456,21.40044057]
[1772604459963,21.1170286,85.498,85.456,21.40044057]
[1772604460758,21.1170286,85.495,85.415,29.03659878]
[1772604460958,9.38602718,85.43,85.325,79.69987202]
[1772604461255,124.0,85.42,85.325,79.69987202]
[1772604461456,4.69301359,85.41,85.325,79.69987202]
[1772604461663,13.15801142,85.409,85.325,79.69987202]
[1772604461857,10.537,85.407,85.325,79.69987202]
[1772604462060,10.82336738,85.441,85.341,65.81108915]
[1772604462360,10.82336738,85.449,85.38,4.69301359]
[1772604462562,4.69301359,85.45,85.381,65.16276171]
[1772604463862,4.69301359,85.39,85.291,65.15845489]
[1772604464163,4.69301359,85.36,85.291,65.15845489]
[1772604466967,4.69301359,85.36,85.294,65.55101028]
[1772604469166,4.69301359,85.39,85.294,65.55101028]
[1772604469669,4.69301359,85.37,85.294,65.55101028]
[1772604470065,10.542,85.369,85.294,65.55101028]
[1772604470769,4.69301359,85.37,85.294,65.55101028]
[1772604472274,4.69301359,85.37,85.296,65.24850279]
[1772604475275,10.542,85.369,85.296,65.24850279]
[1772604475775,4.69301359,85.37,85.296,65.24850279]
[1772604475977,4.69301359,85.38,85.311,65.0870774]
[1772604476479,4.70733665,85.38,85.311,65.0870774]
[1772604476681,10.541,85.377,85.311,65.0870774]
[1772604479891,4.70733665,85.38,85.314,64.35031078]
[1772604480093,10.539,85.389,85.321,64.35031078]
[1772604480384,4.70733665,85.4,85.321,64.35031078]
[1772604480790,10.538,85.395,85.323,64.37041975]
[1772604481688,14.52780552,85.361,85.323,44.60244561]
[1772604481887,13.17864943,85.36,85.323,44.60244561]
[1772604482089,13.17864943,85.359,85.323,44.60244561]
[1772604482391,13.17864943,85.358,85.323,44.60244561]
[1772604482590,13.17864943,85.357,85.323,44.60244561]
[1772604482891,10.538,85.395,85.323,44.60244561]
[1772604483093,10.539,85.392,85.323,44.60244561]
[1772604483291,22.6005504,85.391,85.323,44.60244561]
[1772604483490,11.88606718,85.39,85.34,4.70733665]
[1772604483696,11.88606718,85.389,85.341,53.57833991]
[1772604483895,22.58876164,85.413,85.341,53.57833991]
[1772604484094,22.58876164,85.412,85.36,4.70733665]
[1772604484297,22.58876164,85.411,85.361,53.57833991]
[1772604484498,4.70733665,85.44,85.361,53.57833991]
[1772604484691,11.86869501,85.439,85.361,53.57833991]
[1772604484998,4.70733665,85.44,85.361,53.57833991]
[1772604485499,22.56610315,85.45,85.381,53.38711285]
[1772604485699,22.56610315,85.449,85.381,53.38711285]
[1772604485898,22.56610315,85.448,85.381,53.38711285]
[1772604486095,22.56610315,85.447,85.381,53.38711285]
[1772604486295,22.56610315,85.446,85.381,53.38711285]
[1772604486498,22.56610315,85.445,85.381,53.38711285]
[1772604486698,22.56610315,85.444,85.381,53.38711285]
[1772604486900,22.56610315,85.443,85.381,53.38711285]
[1772604487098,22.56610315,85.442,85.381,53.38711285]
[1772604487299,4.70733665,85.44,85.381,53.38711285]
[1772604489092,15.24033665,85.44,85.381,53.38711285]
[1772604489705,10.534,85.43,85.381,53.38711285]
[1772604491601,32.33975655,85.43,85.381,53.38711285]
[1772604491803,10.535,85.424,85.381,53.38711285]
[1772604492800,10.69740814,85.425,85.381,53.38711285]
[1772604493006,21.80868889,85.435,85.381,53.38711285]
[1772604493206,21.80868889,85.434,85.381,53.38711285]
[1772604493406,21.80868889,85.433,85.381,53.38711285]
[1772604493602,21.80868889,85.432,85.381,53.38711285]
[1772604493804,21.80868889,85.431,85.381,53.38711285]
[1772604494004,21.80868889,85.43,85.381,53.38711285]
[1772604494308,21.80868889,85.429,85.35,57.98905939]
[1772604494502,21.80868889,85.428,85.35,57.98905939]
[1772604494706,21.80868889,85.427,85.35,57.98905939]
[1772604494904,10.536,85.413,85.35,57.98905939]
[1772604495103,10.69740814,85.412,85.35,57.98905939]
[1772604495303,10.69740814,85.411,85.35,57.98905939]
[1772604495505,10.48591961,85.41,85.35,57.98905939]
[1772604495706,10.537,85.408,85.35,57.98905939]
[1772604495901,10.48591961,85.407,85.35,57.98905939]
[1772604496107,10.48591961,85.406,85.35,57.98905939]
[1772604496307,21.64828075,85.408,85.35,57.98905939]
[1772604496308,10.48591961,85.405,85.35,57.98905939]
[1772604496504,10.48591961,85.404,85.35,57.98905939]
[1772604496710,10.48591961,85.403,85.35,57.98905939]
[1772604496914,10.48591961,85.402,85.35,57.98905939]
[1772604497107,10.48591961,85.401,85.35,57.98905939]
[1772604497311,10.538,85.399,85.35,53.28172274]
[1772604497509,21.60754618,85.4,85.35,53.28172274]
[1772604497510,21.60754618,85.398,85.35,53.28172274]
[1772604497714,21.60754618,85.397,85.35,53.28172274]
[1772604498011,32.14554618,85.396,85.35,53.28172274]
[1772604498207,21.60754618,85.395,85.35,53.28172274]
[1772604498509,21.60754618,85.394,85.35,53.28172274]
[1772604498708,21.60754618,85.393,85.35,53.28172274]
[1772604498909,21.60754618,85.392,85.35,53.28172274]
[1772604499109,21.60754618,85.391,85.35,53.28172274]
[1772604499312,32.14654618,85.39,85.35,53.28172274]
[1772604499512,21.60754618,85.389,85.35,53.28172274]
[1772604499810,21.60754618,85.388,85.35,53.28172274]
[1772604500010,21.60754618,85.387,85.35,53.28172274]
[1772604500206,21.60754618,85.386,85.33,4.70733665]
[1772604500413,21.60754618,85.385,85.313,10.549]
[1772604500715,21.60754618,85.384,85.31,4.70733665]
[1772604500916,21.60754618,85.383,85.31,4.70733665]
[1772604501113,21.60754618,85.382,85.31,4.70733665]
[1772604501312,21.60754618,85.381,85.31,4.70733665]
[1772604501511,21.60754618,85.38,85.31,4.70733665]
[1772604501712,21.60754618,85.379,85.31,4.70733665]
[1772604502017,21.60754618,85.378,85.31,4.70733665]
[1772604502210,10.541,85.375,85.311,43.96055125]
[1772604502415,21.60754618,85.374,85.311,43.96055125]
[1772604502715,21.60754618,85.373,85.311,43.96055125]
[1772604502908,21.60754618,85.372,85.311,43.96055125]
[1772604503107,21.60754618,85.371,85.311,43.96055125]
[1772604503308,21.60754618,85.37,85.311,43.96055125]
[1772604503511,21.60754618,85.369,85.311,43.96055125]
[1772604503708,21.60754618,85.368,85.311,43.96055125]
[1772604503909,21.60754618,85.368,85.31,4.70733665]
[1772604503910,21.60754618,85.367,85.313,43.94307731]
[1772604504118,21.60754618,85.366,85.313,43.94307731]
[1772604504316,21.60754618,85.365,85.313,43.94307731]
[1772604504615,21.60754618,85.364,85.313,43.94307731]
[1772604504816,21.60754618,85.363,85.313,43.94307731]
[1772604505018,21.60754618,85.362,85.316,43.84512708]
[1772604505321,14.52780552,85.393,85.331,22.42823811]
[1772604505920,5.37117716,85.398,85.331,22.42823811]
[1772604506313,10.539,85.39,85.331,22.42823811]
[1772604507318,25.06680552,85.39,85.331,22.42823811]
[1772604508219,5.37117716,85.398,85.331,22.42823811]
[1772604508220,10.54,85.387,85.331,22.42823811]
[1772604510221,16.77269645,85.387,85.331,22.42823811]
[1772604510622,6.24706352,85.386,85.331,22.42823811]
[1772604510925,14.52780552,85.39,85.331,22.42823811]
[1772604511119,6.36475284,85.399,85.331,22.42823811]
[1772604511722,4.70733665,85.4,85.2,4.70733665]
[1772604511723,23.80312091,85.339,85.2,4.70733665]
[1772604511913,4.70733665,85.31,85.286,0.00079003]
[1772604512315,23.80312091,85.329,85.286,0.00079003]
[1772604513218,10.548,85.318,85.286,0.00079003]
[1772604513424,23.80312091,85.318,85.286,0.00079003]
[1772604514115,10.549,85.307,85.286,0.00079003]
[1772604514322,4.70733665,85.3,85.286,0.00079003]
[1772604514517,4.70733665,85.3,85.258,22.42823811]
[1772604516822,4.70733665,85.35,85.258,22.42823811]
[1772604516823,23.80312091,85.317,85.258,22.42823811]
[1772604517324,4.70733665,85.32,85.258,22.42823811]
[1772604517325,20.87821134,85.316,85.258,22.42823811]
[1772604517527,4.70733665,85.32,85.258,22.42823811]
[1772604518228,10.547,85.327,85.258,22.42823811]
[1772604519518,10.548,85.317,85.258,22.42823811]
[1772604519721,23.80312091,85.316,85.258,22.42823811]
[1772604520122,23.80312091,85.314,85.258,22.42823811]
[1772604521334,10.549,85.312,85.258,22.42823811]
[1772604522027,20.63072536,85.312,85.258,22.42823811]
[1772604523925,10.08172536,85.312,85.258,22.42823811]
[1772604524124,23.80312091,85.311,85.258,22.42823811]
[1772604524323,20.87396016,85.31,85.258,22.42823811]
[1772604525230,20.63072536,85.31,85.258,22.42823811]
[1772604526031,10.08172536,85.309,85.258,22.42823811]
[1772604527422,20.86450052,85.31,85.258,22.42823811]
[1772604529224,10.549,85.309,85.258,22.42823811]
[1772604529428,20.63072536,85.309,85.258,22.42823811]
[1772604530729,31.40638467,85.309,85.258,22.42823811]
[1772604530931,10.08172536,85.308,85.258,22.42823811]
[1772604531135,24.16863617,85.323,85.26,24.19712928]
[1772604531337,24.16863617,85.321,85.26,24.19712928]
[1772604531638,24.16863617,85.319,85.26,24.19712928]
[1772604531832,20.87977783,85.318,85.26,24.19712928]
[1772604532232,10.549,85.314,85.26,24.19712928]
[1772604532432,24.16863617,85.309,85.26,24.19712928]
[1772604532736,24.16863617,85.307,85.26,24.19712928]
[1772604532926,10.09685843,85.306,85.26,24.19712928]
[1772604533428,20.88204056,85.306,85.26,24.19712928]
[1772604534136,34.71863617,85.303,85.26,24.19712928]
[1772604534335,10.09685843,85.302,85.26,24.19712928]
[1772604534535,4.70733665,85.31,85.26,25.7807989]
[1772604534536,1.58366962,85.31,85.26,25.7807989]
[1772604535839,1.58366962,85.31,85.26,24.19712928]
[1772604538231,10.10481357,85.309,85.26,24.19712928]
[1772604538432,10.10481357,85.308,85.26,24.19712928]
[1772604538737,1.58382066,85.31,85.26,24.19712928]
[1772604538738,10.10481357,85.307,85.26,24.19712928]
[1772604538939,10.10481357,85.309,85.26,24.19712928]
[1772604539239,10.10481357,85.308,85.26,24.19712928]
[1772604539435,10.10481357,85.307,85.26,24.19712928]
[1772604539741,10.10481357,85.306,85.26,24.19712928]
[1772604539934,10.10481357,85.305,85.26,24.19712928]
[1772604540135,10.10481357,85.304,85.26,24.19712928]
[1772604540330,10.10481357,85.303,85.26,24.19712928]
[1772604540534,10.10481357,85.302,85.26,24.19712928]
[1772604540736,10.10481357,85.301,85.26,24.19712928]
[1772604540940,1.58382066,85.31,85.26,24.19712928]
[1772604541236,10.12909722,85.309,85.26,24.19712928]
[1772604541435,10.12909722,85.308,85.26,24.19712928]
[1772604541635,10.12909722,85.307,85.26,24.19712928]
[1772604541836,10.12909722,85.306,85.26,24.19712928]
[1772604542134,10.12909722,85.305,85.26,24.19712928]
[1772604542339,10.12909722,85.304,85.26,24.19712928]
[1772604542538,10.12909722,85.303,85.26,24.19712928]
[1772604542739,10.12909722,85.302,85.26,24.19712928]
[1772604542938,10.12909722,85.301,85.26,24.19712928]
[1772604543134,10.12909722,85.3,85.26,24.19712928]
[1772604543337,10.12909722,85.299,85.26,24.19712928]
[1772604543534,10.12909722,85.298,85.26,24.19712928]
[1772604543738,10.12909722,85.297,85.26,24.19712928]
[1772604543934,1.58382066,85.31,85.26,24.19712928]
[1772604544134,10.14333864,85.309,85.26,24.19712928]
[1772604544344,1.58382066,85.31,85.26,24.19712928]
[1772604544345,10.14333864,85.308,85.26,24.19712928]
[1772604544546,10.14333864,85.307,85.26,24.19712928]
[1772604544735,10.14333864,85.306,85.26,24.19712928]
[1772604545045,10.547,85.326,85.271,24.19712928]
[1772604545544,1.58382066,85.32,85.271,24.19712928]
[1772604545844,1.58382066,85.31,85.271,24.19712928]
[1772604546346,1.58382066,85.3,85.271,24.19712928]
[1772604546643,1.58382066,85.3,85.241,24.19712928]
[1772604547045,1.58382066,85.3,85.245,24.19712928]
[1772604547844,1.58382066,85.3,85.255,24.19712928]
[1772604549048,1.58382066,85.31,85.255,24.19712928]
[1772604549244,1.58382066,85.31,85.26,10.555]
[1772604549445,1.58382066,85.31,85.261,24.19712928]
[1772604549748,1.58382066,85.31,85.264,10.555]
[1772604549948,1.58382066,85.31,85.265,24.19712928]
[1772604550348,1.58382066,85.31,85.266,10.554]
[1772604550648,10.53687798,85.309,85.267,24.19712928]
[1772604550848,10.53687798,85.308,85.271,24.19712928]
[1772604551047,10.53687798,85.307,85.273,24.19712928]
[1772604551249,10.53687798,85.318,85.273,24.19712928]
[1772604551453,10.53687798,85.317,85.273,24.19712928]
[1772604551656,10.53687798,85.316,85.278,24.19712928]
[1772604551851,10.53687798,85.315,85.278,24.19712928]
[1772604552152,10.53687798,85.314,85.278,24.19712928]
[1772604552355,1.58382066,85.31,85.278,24.19712928]
[1772604552552,10.53687798,85.309,85.278,24.19712928]
[1772604552747,1.58382066,85.31,85.278,24.19712928]
[1772604552950,10.55281257,85.309,85.278,24.19712928]
[1772604553152,10.55367179,85.308,85.278,24.19712928]
[1772604553348,10.55367179,85.307,85.278,24.19712928]
[1772604553550,10.55367179,85.306,85.278,24.19712928]
[1772604553750,10.55367179,85.305,85.278,24.19712928]
[1772604553953,24.16863617,85.289,85.214,2.04076845]
[1772604554154,1.58382066,85.23,85.191,24.19712928]
[1772604554356,1.58382066,85.24,85.191,24.19712928]
[1772604554555,1.58382066,85.25,85.201,24.19712928]
[1772604554753,10.50067753,85.249,85.201,24.19712928]
[1772604554954,10.50067753,85.248,85.204,24.19712928]
[1772604555148,1.58382066,85.25,85.204,24.19712928]
[1772604555750,1.58382066,85.25,85.174,2.04161252]
[1772604555751,24.16863617,85.239,85.175,24.19712928]
[1772604555955,1.58382066,85.21,85.175,24.19712928]
[1772604556160,1.58382066,85.21,85.16,25.78094994]
[1772604556357,24.16863617,85.219,85.16,25.78094994]
[1772604556358,1.58382066,85.2,85.16,24.19712928]
[1772604556661,4.72521337,85.21,85.16,24.19712928]
[1772604556961,9.89990198,85.209,85.16,24.19712928]
[1772604557259,9.89990198,85.208,85.16,24.19712928]
[1772604557460,9.89990198,85.207,85.16,24.19712928]
[1772604557657,9.89990198,85.206,85.16,24.19712928]
[1772604557856,9.89990198,85.205,85.16,24.19712928]
[1772604558053,9.89990198,85.204,85.16,24.19712928]
[1772604558360,9.89990198,85.203,85.16,24.19712928]
[1772604558558,9.89990198,85.202,85.16,24.19712928]
[1772604558756,9.89990198,85.201,85.16,24.19712928]
[1772604558960,9.89990198,85.217,85.16,24.19712928]
[1772604559156,9.89990198,85.218,85.16,24.19712928]
[1772604559361,27.63691015,85.228,85.161,26.70082892]
[1772604559557,27.63691015,85.226,85.161,26.70082892]
[1772604559858,9.89990198,85.225,85.161,26.70082892]
[1772604560061,9.89990198,85.224,85.161,26.70082892]
[1772604560262,9.89990198,85.223,85.161,26.70082892]
[1772604560462,9.89990198,85.222,85.161,26.70082892]
[1772604560661,9.89990198,85.221,85.161,26.70082892]
[1772604560862,9.89990198,85.22,85.161,26.70082892]
[1772604561058,9.89990198,85.219,85.161,26.70082892]
[1772604561259,9.89990198,85.225,85.161,26.70082892]
[1772604561464,36.56297392,85.224,85.161,26.70082892]
[1772604561664,9.89990198,85.223,85.161,26.70082892]
[1772604561962,36.56297392,85.223,85.161,26.70082892]
[1772604562160,9.89990198,85.222,85.161,26.70082892]
[1772604562663,26.66307194,85.221,85.161,26.70082892]
[1772604562857,4.72521337,85.21,85.161,26.70082892]
[1772604563963,31.38828531,85.21,85.161,26.70082892]
[1772604567768,4.72521337,85.21,85.165,26.1115456]
[1772604568469,4.72521337,85.21,85.169,26.1115456]
[1772604568674,31.38828531,85.23,85.169,26.1115456]
[1772604570474,31.38828531,85.23,85.179,10.565]
[1772604571572,31.38828531,85.23,85.166,10.567]
[1772604571776,26.66307194,85.228,85.166,10.567]
[1772604572072,26.66307194,85.228,85.167,26.1115456]
[1772604572272,26.66307194,85.228,85.171,26.1115456]
[1772604573079,26.66307194,85.241,85.173,26.1115456]
[1772604574374,26.66307194,85.241,85.182,26.1115456]
[1772604574978,4.72521337,85.23,85.182,26.1115456]
[1772604576380,31.38828531,85.23,85.182,26.1115456]
[1772604576582,1.58690471,85.22,85.182,26.1115456]
[1772604579676,1.58690471,85.21,85.182,26.1115456]
[1772604580075,1.58690471,85.22,85.182,26.1115456]
[1772604585186,1.58690471,85.22,85.184,26.1115456]
[1772604587277,26.66307194,85.23,85.124,2.04291891]